Cogmind - Beta 11.1 @@@ ROGUE MODE // 2022.05.07 @ 20:01:59 Player: Savant Result: Destroyed by Y-54 Guardian with Gatling Laser Performance ------------- Evolutions (3) 1500 Regions Visited (11) 2200 Robots Destroyed (141) 705 Value Destroyed (4847) 4847 Prototype IDs (12) 240 Alien Tech Used (0) 0 Bonus (375) 375 TOTAL SCORE: 9867 Bonus ------- High Alert Combat Kills 445 Friendly Fire -70 Cogmind --------- Core Integrity 0/700 Matter 126/300 Energy 310/310 System Corruption 28% Temperature Cool (12) Movement Rolling (190) Ox6 Location -7/Storage Parts ------- > --- POWER (1) -------- Heavy Deuterium Engine > --- PROPULSION (4) --- Compact Wheel > --- UTILITY (5) ------ Huge Storage Unit Improved Targeting Computer Layered Light Armor Plating Layered Light Armor Plating > --- WEAPON (3) ------- Advanced Beam Cannon > --- INVENTORY (25) --- Heavy Deuterium Engine Improved Cooling System High-capacity Storage Unit High-capacity Battery (250) Advanced Visual Processing Unit Improved Signal Interpreter Improved Targeting Computer Layered Light Armor Plating Medium Reactive Plating Hardlight Generator Hacking Suite Heavy Laser Cooled Pulse Rifle Improved Spread Laser Improved EM Pulse Cannon Cooled Particle Cannon Heavy Rocket Launcher Faulty Rocket Array Spear Peak State ------------ > --- POWER ------------ Improved Deuterium Engine > --- PROPULSION ------- Armored Huge Wheel Armored Huge Wheel > --- UTILITY ---------- Coolant Injector Huge Storage Unit Improved Targeting Computer Layered Light Armor Plating Layered Light Armor Plating > --- WEAPON ----------- High-powered Shock Rifle Tesla Rifle Heavy Laser > --- INVENTORY -------- Light Treads Armored Treads Armored Huge Wheel Improved Cooling System Improved Cooling System High-capacity Storage Unit High-capacity Battery Advanced Visual Processing Unit Improved Signal Interpreter Improved Targeting Computer Improved Medium Armor Plating Layered Light Armor Plating Layered Light Armor Plating Layered Light Armor Plating Hardlight Generator Hacking Suite Improved EM Pulse Cannon Improved EM Pulse Cannon Plasma Cannon Cooled Particle Cannon Heavy Rocket Launcher Rocket Array Spear [Rating: 58] Favorites ----------- Power Heavy Ion Engine Engine Heavy Ion Engine Propulsion Armored Treads Treads Armored Treads Leg Aluminum Leg Wheel Armored Huge Wheel Flight Unit Improved Flight Unit Utility Improved Targeting Computer Device Cooling System Storage Large Storage Unit Processor Improved Targeting Computer Hackware Hacking Suite Protection Improved Medium Armor Plating Weapon EM Shotgun Energy Gun EM Shotgun Energy Cannon Advanced Beam Cannon Launcher Heavy Rocket Launcher Piercing Weapon Spear Build | -11 -10 -10 -9 -9 -9 -8 -8 -7 -7 -7 -7 ------- Run | Scr Mat Min Mat Min Exi Min Mat Fac Was Fac Sto Slots Evolved 6 | . . . 2 . . . 2 2 . . . Power . | . . . . . . . . . . . . Propulsion 2 | . . . 1 . . . . 1 . . . Utility 3 | . . . 1 . . . 1 1 . . . Weapon 1 | . . . . . . . 1 . . . . Parts Attached 154 | 6 6 . 19 4 . 6 11 29 4 49 20 Power 12 | 1 1 . 2 . . . 1 1 1 3 2 Engine 12 | 1 1 . 2 . . . 1 1 1 3 2 Core . | . . . . . . . . . . . . Reactor . | . . . . . . . . . . . . Propulsion 29 | 2 . . 8 2 . 4 2 5 1 3 2 Treads 11 | . . . 4 . . 2 1 2 . 2 . Leg 6 | 2 . . 1 1 . 2 . . . . . Wheel 11 | . . . 2 1 . . 1 3 1 1 2 Hover . | . . . . . . . . . . . . Flight 1 | . . . 1 . . . . . . . . Utility 38 | 1 3 . 4 . . . 2 12 1 10 5 Device 15 | . . . 3 . . . . 4 1 7 . Storage 6 | 1 1 . 1 . . . . 3 . . . Processor 2 | . 2 . . . . . . . . . . Hackware 1 | . . . . . . . . 1 . . . Protection 14 | . . . . . . . 2 4 . 3 5 Artifact . | . . . . . . . . . . . . Weapon 75 | 2 2 . 5 2 . 2 6 11 1 33 11 Energy Gun 40 | 2 2 . 4 1 . 2 4 8 . 12 5 Energy Cannon 29 | . . . 1 . . . 2 3 . 20 3 Ballistic Gun . | . . . . . . . . . . . . Ballistic Cannon . | . . . . . . . . . . . . Launcher 5 | . . . . 1 . . . . 1 1 2 Special Weapon . | . . . . . . . . . . . . Impact Weapon . | . . . . . . . . . . . . Slashing Weapon . | . . . . . . . . . . . . Piercing Weapon 1 | . . . . . . . . . . . 1 Special Melee Weapon . | . . . . . . . . . . . . Unidentified Prototypes 9 | . . . 5 . . . . 1 . . 3 Parts Lost 37 | . . . 3 1 . 4 1 7 1 9 11 Power 3 | . . . . . . . . . 1 1 1 Propulsion 10 | . . . 1 1 . 2 . 1 . 1 4 Utility 7 | . . . . . . . . 1 . 2 4 Weapon 17 | . . . 2 . . 2 1 5 . 5 2 Highest Loss Streak 7 | . . . 1 1 . 3 1 4 1 3 7 To Critical Strikes . | . . . . . . . . . . . . Average Slot Usage (%) 94 | . 98 100 99 100 100 99 100 92 79 85 85 Engine 9 | . 14 14 11 11 11 11 9 7 5 7 6 Treads 12 | . . . 13 22 22 20 18 14 1 2 11 Leg 4 | . 28 28 8 . . 1 . . . . . Wheel 9 | . . . 11 10 11 11 9 8 14 13 7 Device 7 | . . . 11 11 11 11 9 6 3 6 6 Storage 9 | . 14 14 11 11 11 11 9 7 7 7 7 Processor 9 | . 12 14 11 11 11 11 9 7 7 7 7 Hackware 1 | . . . . . . . . 6 7 4 . Protection 4 | . . . . . . . 9 7 7 9 14 Energy Gun 17 | . 27 28 17 10 11 20 20 20 8 11 15 Energy Cannon 5 | . . . 4 11 11 1 6 1 7 11 4 Naked Turns . | . . . . . . . . . . . . Heaviest Build 124 | 12 23 23 37 37 37 37 49 112 115 124 117 Greatest Support 56 | 20 20 20 40 10 10 20 12 28 56 56 28 Greatest Overweight (x) 6 | . 1 1 3 3 3 3 4 3 3 4 6 Average Overweight (x) 2 | . . 1 2 3 3 2 3 1 1 2 3 Largest Inventory Capacity 25 | 8 10 10 15 15 15 15 15 25 25 25 25 Average Capacity 17 | 7 9 10 12 15 15 15 15 20 25 25 25 Most Carried 25 | 5 10 10 15 15 15 15 15 25 25 25 25 Average Carried 16 | 3 8 9 11 14 14 13 14 17 24 23 23 Final Capacity 25 | 8 10 10 15 15 15 15 15 25 25 25 25 Final Carried 25 | 5 10 10 15 15 15 13 15 25 24 23 19 Class Distribution -------------------- 57% | Mutant 32% | Gunner 10% | Tank Dominant Class ---------------- Mutant | -10/Materials Mutant | -10/Mines Mutant | -9/Materials Mutant | -9/Mines Mutant | -9/Exiles Mutant | -8/Mines Gunner | -8/Materials Gunner | -7/Factory Mutant | -7/Waste Gunner | -7/Factory Tank | -7/Storage Resources | -11 -10 -10 -9 -9 -9 -8 -8 -7 -7 -7 -7 ----------- Run | Scr Mat Min Mat Min Exi Min Mat Fac Was Fac Sto Matter Collected 1777 | 248 69 . 195 76 39 55 110 260 . 622 103 Remotely . | . . . . . . . . . . . . Salvage Created 5807 | . 150 42 1089 351 . 274 657 900 . 1402 942 Parts 321 | . 18 8 57 16 . 21 36 49 . 67 49 Haulers Intercepted 9 | . 1 . 4 . . . 1 1 . 1 1 Recyclers Shooed 2 | . 1 . 1 . . . . . . . . Parts Field Recycled . | . . . . . . . . . . . . Retrieved Matter . | . . . . . . . . . . . . Parts Self-Destructed . | . . . . . . . . . . . . Prevented . | . . . . . . . . . . . . Kills | -11 -10 -10 -9 -9 -9 -8 -8 -7 -7 -7 -7 ------- Run | Scr Mat Min Mat Min Exi Min Mat Fac Was Fac Sto Combat Hostiles Destroyed 129 | . 6 3 14 22 . 12 9 14 . 25 24 Guns 68 | . 6 3 13 3 . 8 4 10 . 8 13 Cannons 24 | . . . . 5 . . 4 1 . 11 3 AOE 30 | . . . 1 14 . 3 . 1 . 3 8 Classes Destroyed 16 | . 2 . 6 2 . 1 1 3 . 1 . Worker 4 | . . . 1 . . . 1 . . . 2 Builder 7 | . . . . . . . . 2 . 4 1 Tunneler 1 | . . . 1 . . . . . . . . Hauler 9 | . 1 . 4 . . . 1 1 . 1 1 Recycler 2 | . . . 1 . . . . 1 . . . Operator 1 | . . . . . . . 1 . . . . Watcher 4 | . . . 1 . . . 1 . . 1 1 Swarmer 29 | . 6 3 . . . 10 . 3 . 3 4 Grunt 49 | . . . 8 3 . . 6 6 . 12 14 Brawler 3 | . . . . . . . . 1 . 2 . Duelist 2 | . . . . . . . . . . 1 1 Sentry 19 | . . . 6 2 . . 3 2 . 3 3 Demolisher 1 | . . . . 1 . . . . . . . Hunter 5 | . . . . . . 2 . . . 1 2 Programmer 5 | . . . . . . . . 2 . 3 . Assembled 16 | . . . . 16 . . . . . . . Best Kill Streak 17 | . 3 3 6 17 . 5 4 6 . 6 8 Combat Bots Only 17 | . 3 3 3 17 . 5 4 4 . 4 7 Max Kills in Single Turn 5 | . 2 2 2 5 . 2 1 2 . 5 4 Gunslinging 1 | . 1 1 . . . 1 . . . . 1 Exploded 5 | . . . 1 5 . 1 . 1 . 3 2 Melee . | . . . . . . . . . . . . Uniques/NPCs Destroyed . | . . . . . . . . . . . . Combat | -11 -10 -10 -9 -9 -9 -8 -8 -7 -7 -7 -7 -------- Run | Scr Mat Min Mat Min Exi Min Mat Fac Was Fac Sto Damage Taken 8852 | . 95 42 611 764 . 521 641 1375 66 2096 2641 Core 1062 | . 26 . 131 51 . 94 59 98 . 251 352 Absorbed by Shields . | . . . . . . . . . . . . Regen/Repaired (Parts) 97 | . . . . . . . 97 . . . . Core Remaining (%) 77 | 100 . 89 . . . 31 89 . . . . Volleys Fired 275 | . 9 2 42 22 . 21 19 44 1 71 44 Largest 3 | . 2 2 2 2 . 2 3 3 1 3 3 Hottest 207 | . 90 90 124 124 . 124 158 165 39 207 207 Shots Fired 635 | . 18 4 84 36 . 42 53 108 1 179 110 Gun 442 | . 18 4 72 14 . 40 35 87 . 91 81 Cannon 177 | . . . 12 14 . 2 18 21 . 88 22 Launcher 16 | . . . . 8 . . . . 1 . 7 Special . | . . . . . . . . . . . . Kinetic . | . . . . . . . . . . . . Thermal 311 | . 4 . 24 28 . 16 18 44 . 87 90 Explosive 16 | . . . . 8 . . . . 1 . 7 Electromagnetic 308 | . 14 4 60 . . 26 35 64 . 92 13 Robot Hit Streak 44 | . 8 4 33 9 . 15 15 42 . 44 20 Robot Miss Streak 6 | . 2 1 6 1 . 5 4 2 . 6 3 Penetration Max . | . . . . . . . . . . . . Secondary Targets 11 | . 1 1 . . . 3 . 3 . 1 2 Max Gunslinging Chain 1 | . 1 1 . . . 1 . 1 . 1 1 Shots Hit Robots 462 | . 13 3 63 25 . 30 39 89 . 112 88 Core Hits 310 | . 10 3 45 45 . 16 26 42 1 48 74 Critical Kills 1 | . . . 1 . . . . . . . . Critical Parts Destroyed . | . . . . . . . . . . . . Critical Strikes 4 | . . . 1 . . . . . . 1 2 Burn 2 | . . . . . . . . . . . 2 Meltdown 1 | . . . 1 . . . . . . . . Corrupt 1 | . . . . . . . . . . 1 . Melee Attacks 1 | . . . . . . . . . . . 1 Impact . | . . . . . . . . . . . . Slashing . | . . . . . . . . . . . . Piercing 1 | . . . . . . . . . . . 1 Sneak Attacks . | . . . . . . . . . . . . Combat Hostiles . | . . . . . . . . . . . . Follow-up Attacks . | . . . . . . . . . . . . Damage Inflicted 12987 | . 141 26 1136 1516 . 554 833 1907 108 3646 3120 Guns 6157 | . 129 26 983 192 . 460 623 1209 . 1115 1420 Cannons 2963 | . . . 83 229 . . 210 382 . 1643 416 Explosions 3840 | . . . 68 1095 . 94 . 316 108 888 1271 Melee . | . . . . . . . . . . . . Ramming 27 | . 12 . 2 . . . . . . . 13 Kinetic . | . . . . . . . . . . . . Thermal 6116 | . 10 . 305 421 . 217 210 1059 . 2264 1630 Explosive 2474 | . . . . 1095 . . . . 108 . 1271 Electromagnetic 4370 | . 119 26 829 . . 337 623 848 . 1382 206 Impact . | . . . . . . . . . . . . Slashing . | . . . . . . . . . . . . Piercing . | . . . . . . . . . . . . Highest Corruption 28 | . . . . . . . . 2 14 25 28 Average Corruption 18 | . . . . . . . . 1 9 17 25 Corruption Purged 5 | . . . . . . . . 2 3 . . Corruption Blocked . | . . . . . . . . . . . . Effects 110 | . . . . . . . . 1 6 68 35 Message Errors 17 | . . . . . . . . . . 10 7 Matter Fused 22 | . . . . . . . . . 2 15 5 Heat Flow Errors 16 | . . . . . . . . . . 9 7 Energy Discharges 13 | . . . . . . . . 1 2 8 2 Parts Rejected 6 | . . . . . . . . . . 5 1 Data Loss (minor) 10 | . . . . . . . . . 1 8 1 Data Loss (major) 4 | . . . . . . . . . . 2 2 Misfires 3 | . . . . . . . . . . 1 2 Alerts 2 | . . . . . . . . . 1 1 . Misdirections 8 | . . . . . . . . . . 3 5 Weapon Failures 9 | . . . . . . . . . . 6 3 Overload Shots . | . . . . . . . . . . . . Overflow Damage 147 | . . . . 20 . . . 44 . 38 45 Projectiles 36 | . . . . . . . . . . 36 . Explosions 111 | . . . . 20 . . . 44 . 2 45 Melee . | . . . . . . . . . . . . Knockbacks . | . . . . . . . . . . . . Impact . | . . . . . . . . . . . . Kinetic . | . . . . . . . . . . . . Secondary . | . . . . . . . . . . . . Self-Inflicted Damage 540 | . . . 76 40 . 79 . 118 29 . 198 Shots 13 | . . . 2 1 . 3 . 2 1 . 4 Rammed 5 | . . . 3 . . . . . . . 2 Targets Rammed 7 | . 2 . 3 . . . . . . . 2 Kicked 2 | . 2 . . . . . . . . . . Crushed . | . . . . . . . . . . . . Highest Temperature 402 | . 99 66 22 48 . . 210 381 . 328 402 Average Temperature 97 | . 38 35 8 26 . . 64 70 . 120 118 Received Heat Transfer 2199 | . 15 . 216 135 . . 216 408 . 600 609 Effects 4 | . . . . . . . . 3 . . 1 Shutdowns 1 | . . . . . . . . 1 . . . Interference 3 | . . . . . . . . 2 . . 1 Siege Activations . | . . . . . . . . . . . . Robots Corrupted 8 | . . . . . . 1 2 2 . 3 . Combat Hostiles 7 | . . . . . . 1 1 2 . 3 . Parts Fried 22 | . . . 3 . . 2 3 5 . 9 . Impact Corruptions . | . . . . . . . . . . . . Robots Melted 1 | . . . 1 . . . . . . . . Combat Hostiles . | . . . . . . . . . . . . Parts Melted 14 | . . . 4 1 . . . 4 . 4 1 Heat Transferred 9213 | . 25 . 531 814 . 309 370 1645 . 2717 2802 Parts Sabotaged . | . . . . . . . . . . . . Parts Stolen . | . . . . . . . . . . . . Parts Stripped . | . . . . . . . . . . . . Power Chain Reactions 9 | . . . 2 . . 3 . 2 . 2 . Missiles Intercepted . | . . . . . . . . . . . . Alert | -11 -10 -10 -9 -9 -9 -8 -8 -7 -7 -7 -7 ------- Run | Scr Mat Min Mat Min Exi Min Mat Fac Was Fac Sto Peak Influence 984 | . 90 103 375 185 . 263 232 224 84 529 984 Initial 223 | . . 33 . 45 . . 31 105 43 51 223 Average 164 | . 27 64 185 103 . 78 136 110 58 213 568 Maximum Alert Level 3 | . . . 1 . . 1 1 1 . 2 3 Low Security (%) 73 | 100 100 100 50 100 . 98 74 95 100 56 . Level 1 18 | . . . 49 . . 1 25 4 . 26 46 Level 2 4 | . . . . . . . . . . 16 18 Level 3 2 | . . . . . . . . . . . 35 Level 4 . | . . . . . . . . . . . . Level 5 . | . . . . . . . . . . . . High Security . | . . . . . . . . . . . . Max Security . | . . . . . . . . . . . . Squads Dispatched 15 | . . . 2 . . . 1 4 . 2 6 Investigation 2 | . . . . . . . . . . . 2 Extermination 4 | . . . . . . . . 2 . 2 . Reinforcement 9 | . . . 2 . . . 1 2 . . 4 Assault . | . . . . . . . . . . . . Garrison . | . . . . . . . . . . . . Intercept . | . . . . . . . . . . . . Searches Triggered . | . . . . . . . . . . . . Construction Impeded 2 | . . . . . . . . 1 . . 1 Haulers Reinforced 1 | . . . . . . . . . . . 1 Active Scanning Responses . | . . . . . . . . . . . . Cargo Convoy Interrupts . | . . . . . . . . . . . . Stealth | -11 -10 -10 -9 -9 -9 -8 -8 -7 -7 -7 -7 --------- Run | Scr Mat Min Mat Min Exi Min Mat Fac Was Fac Sto Distress Signals 10 | . 3 . . . . . 2 . . 2 3 Communications Jammed . | . . . . . . . . . . . . Distress Signals . | . . . . . . . . . . . . Times Spotted 184 | . 14 3 18 28 . 12 15 15 6 40 33 Peak Tracking Total 12 | . 6 3 3 12 . 4 5 4 6 6 8 Tactical Retreats 7 | . . . 1 1 . . 2 . . 3 . Traps | -11 -10 -10 -9 -9 -9 -8 -8 -7 -7 -7 -7 ------- Run | Scr Mat Min Mat Min Exi Min Mat Fac Was Fac Sto Traps Triggered 10 | . . . 2 . . . . 4 . 3 1 Indirectly . | . . . . . . . . . . . . Trap Hack Attempts . | . . . . . . . . . . . . Triggered . | . . . . . . . . . . . . Disarmed . | . . . . . . . . . . . . Reprogrammed . | . . . . . . . . . . . . Reused . | . . . . . . . . . . . . Traps Extracted . | . . . . . . . . . . . . Installed . | . . . . . . . . . . . . Triggered 1 | . . . . . . . . . . 1 . Machines | -11 -10 -10 -9 -9 -9 -8 -8 -7 -7 -7 -7 ---------- Run | Scr Mat Min Mat Min Exi Min Mat Fac Was Fac Sto Machines Disabled 20 | . . . 3 . . 4 . 1 . 7 5 Max in Single Turn 4 | . . . 1 . . 1 . 1 . 4 1 Garrison Access 1 | . . . . . . . . . . . 1 Machines Sabotaged . | . . . . . . . . . . . . Garrisons Compromised . | . . . . . . . . . . . . Overloaded Fab Kills . | . . . . . . . . . . . . Hacking | -11 -10 -10 -9 -9 -9 -8 -8 -7 -7 -7 -7 --------- Run | Scr Mat Min Mat Min Exi Min Mat Fac Was Fac Sto Machines Accessed 32 | . 3 . 7 . 1 1 7 5 . 3 5 Terminals 24 | . 3 . 6 . . 1 6 3 . 1 4 Fabricators 3 | . . . . . . . . 2 . 1 . Repair Stations 1 | . . . . . . . 1 . . . . Recycling Units 2 | . . . 1 . . . . . . 1 . Scanalyzers . | . . . . . . . . . . . . Garrison Access 1 | . . . . . . . . . . . 1 Total Hacks 93 | . 19 . 25 . 4 4 15 11 . 5 10 Successful 55 | . 12 . 15 . 4 1 11 5 . 3 4 Failed 37 | . 6 . 10 . . 3 4 6 . 2 6 Catastrophic 4 | . . . 1 . . 2 . . . . 1 Database Lockouts 1 | . 1 . . . . . . . . . . Manual 41 | . 9 . 13 . . 1 9 5 . . 4 Terminals 80 | . 19 . 24 . . 4 13 9 . 2 9 Fabricators 4 | . . . . . . . . 2 . 2 . Repair Stations 2 | . . . . . . . 2 . . . . Recycling Units 2 | . . . 1 . . . . . . 1 . Scanalyzers . | . . . . . . . . . . . . Garrison Access 1 | . . . . . . . . . . . 1 Terminal Hacks 32 | . 8 . 10 . 4 . 5 2 . 1 2 Record 5 | . . . 1 . 4 . . . . . . Part Schematic 1 | . 1 . . . . . . . . . . Robot Analysis 2 | . 1 . 1 . . . . . . . . Prototype ID Bank 3 | . . . 3 . . . . . . . . Open Door 1 | . . . . . . . . . . . 1 Level Access Points 1 | . . . . . . . . . . 1 . Branch Access Points 1 | . 1 . . . . . . . . . . Emergency Access Points 1 | . 1 . . . . . . . . . . Terminal Index 1 | . . . . . . . . 1 . . . Unreport Threat 3 | . 1 . 1 . . . 1 . . . . Locate Traps 5 | . 2 . 1 . . . 1 1 . . . Hauler Manifests 2 | . . . 1 . . . 1 . . . . Zone Layout 6 | . 1 . 2 . . . 2 . . . 1 Fabricator Hacks 2 | . . . . . . . . 1 . 1 . Network Status 2 | . . . . . . . . 1 . 1 . Repair Station Hacks 2 | . . . . . . . 2 . . . . Scan Component 1 | . . . . . . . 1 . . . . Repair 1 | . . . . . . . 1 . . . . Recycling Unit Hacks 2 | . . . 1 . . . . . . 1 . Report Inventory 2 | . . . 1 . . . . . . 1 . Scanalyzer . | . . . . . . . . . . . . Garrison Access Hacks . | . . . . . . . . . . . . Unauthorized Hacks 17 | . 4 . 4 . . 1 4 2 . . 2 Terminals 15 | . 4 . 4 . . 1 4 1 . . 1 Track 4 | . 1 . 1 . . 1 1 . . . . Botnet 11 | . 3 . 3 . . . 3 1 . . 1 Fabricators 1 | . . . . . . . . 1 . . . Report 1 | . . . . . . . . 1 . . . Repair Stations . | . . . . . . . . . . . . Recycling Units . | . . . . . . . . . . . . Scanalyzers . | . . . . . . . . . . . . Garrison Access 1 | . . . . . . . . . . . 1 Jam 1 | . . . . . . . . . . . 1 Data Cores Recovered . | . . . . . . . . . . . . Used . | . . . . . . . . . . . . Hacking Detections 24 | . 3 . 6 . . 1 6 4 . 1 3 Full Trace Events 1 | . . . . . . . . . . . 1 Feedback Events . | . . . . . . . . . . . . Feedback Blocked . | . . . . . . . . . . . . Robot Schematics Acquired . | . . . . . . . . . . . . Robots Built . | . . . . . . . . . . . . Authchips . | . . . . . . . . . . . . Time . | . . . . . . . . . . . . Total Robot Build Rating . | . . . . . . . . . . . . Part Schematics Acquired 1 | . 1 . . . . . . . . . . Parts Built . | . . . . . . . . . . . . Authchips . | . . . . . . . . . . . . Time . | . . . . . . . . . . . . Total Part Build Rating . | . . . . . . . . . . . . Parts Repaired 1 | . . . . . . . 1 . . . . Time 51 | . . . . . . . 51 . . . . Parts Recycled . | . . . . . . . . . . . . Recycled Matter . | . . . . . . . . . . . . Retrieved Matter . | . . . . . . . . . . . . Retrieved Components . | . . . . . . . . . . . . Parts Scanalyzed . | . . . . . . . . . . . . Part Schematics Acquired . | . . . . . . . . . . . . Parts Damaged . | . . . . . . . . . . . . Bothacking | -11 -10 -10 -9 -9 -9 -8 -8 -7 -7 -7 -7 ------------ Run | Scr Mat Min Mat Min Exi Min Mat Fac Was Fac Sto Used RIF Installer . | . . . . . . . . . . . . Robots Hacked . | . . . . . . . . . . . . Non-combat . | . . . . . . . . . . . . Combat . | . . . . . . . . . . . . Robot Hacks Applied . | . . . . . . . . . . . . Relay Couplers Released 3 | . . . . . . . . . . 3 . Programmers 3 | . . . . . . . . . . 3 . Fabnet Peak Effective % . | . . . . . . . . . . . . Robots Rewired . | . . . . . . . . . . . . Allies Hacked . | . . . . . . . . . . . . Hacks Repelled . | . . . . . . . . . . . . Allies | -11 -10 -10 -9 -9 -9 -8 -8 -7 -7 -7 -7 -------- Run | Scr Mat Min Mat Min Exi Min Mat Fac Was Fac Sto Total Allies 3 | . . . . 3 . . . . . . . Largest Group 3 | . . . . 3 . . . . . . . Highest-Rated Group 40 | . . . . 40 . . . . . . . Highest-Rated Ally 16 | . . . . 16 . . . . . . . Total Orders . | . . . . . . . . . . . . Ally Attacks 8 | . . . . 8 . . . . . . . Total Damage 70 | . . . . 70 . . . . . . . Kills . | . . . . . . . . . . . . Allies Corrupted . | . . . . . . . . . . . . Allies Melted . | . . . . . . . . . . . . Intel | -11 -10 -10 -9 -9 -9 -8 -8 -7 -7 -7 -7 ------- Run | Scr Mat Min Mat Min Exi Min Mat Fac Was Fac Sto Robot Analysis Total 2 | . 1 . 1 . . . . . . . . Derelict Logs Recovered 3 | . . 1 . 2 . . . . . . . Drone Launches . | . . . . . . . . . . . . Drone Recoveries . | . . . . . . . . . . . . Exploration | -11 -10 -10 -9 -9 -9 -8 -8 -7 -7 -7 -7 ------------- Run | Scr Mat Min Mat Min Exi Min Mat Fac Was Fac Sto Turns Passed 7579 | 62 465 407 969 591 242 951 789 1044 132 1325 602 Spaces Moved 4521 | 43 239 211 596 403 193 608 470 650 97 751 260 Core 4 | 4 . . . . . . . . . . . Treads 74 | . . . 1 . . 73 . . . . . Legs 489 | 39 239 211 . . . . . . . . . Wheels 3954 | . . . 595 403 193 535 470 650 97 751 260 Hover . | . . . . . . . . . . . . Flight . | . . . . . . . . . . . . Fastest Speed 50 | 50 120 190 110 125 125 125 135 115 115 115 145 Average Speed 135 | 113 167 190 118 125 125 140 137 126 125 131 157 Slowest Speed 250 | 120 190 190 170 125 125 250 150 145 145 160 190 Overloaded Moves . | . . . . . . . . . . . . Propulsion Burnouts . | . . . . . . . . . . . . Robots Hopped . | . . . . . . . . . . . . Cave-ins Triggered . | . . . . . . . . . . . . Exploration Rate (%) 53 | 4 56 53 55 88 57 97 42 20 68 29 67 Regions Visited 11 Branch Regions 5 Pre-discovered Areas 1 | . . . . . 1 . . . . . . Known Exits Taken 1 | . 1 . . . . . . . . . . Unknown Exits Taken 8 | 1 . 1 1 1 1 1 1 . . 1 . Scrap Searched 5 | . . 1 . 3 . 1 . . . . . Spaces Dug 33 | . . . . . . . . 3 13 2 15 Terrain Destroyed 241 | . . . 27 60 . 17 . 16 13 45 63 Melee . | . . . . . . . . . . . . Projectile 9 | . . . . . . . . 3 . 5 1 AOE 232 | . . . 27 60 . 17 . 13 13 40 62 Terrain Rammed . | . . . . . . . . . . . . Walls Destroyed . | . . . . . . . . . . . . Machines Disabled . | . . . . . . . . . . . . Actions | -11 -10 -10 -9 -9 -9 -8 -8 -7 -7 -7 -7 --------- Run | Scr Mat Min Mat Min Exi Min Mat Fac Was Fac Sto Total 5401 | 53 289 214 774 454 194 666 581 780 106 931 359 Wait 272 | . 12 . 84 22 . 29 54 29 1 22 19 Move 4511 | 42 238 210 595 402 192 607 469 650 96 750 260 Hop . | . . . . . . . . . . . . Pick Up 90 | 5 10 1 14 2 1 1 13 18 2 17 6 Fast Attach 35 | 6 4 . 5 . . 1 3 5 . 9 2 Attach 42 | . . . 3 2 . 4 3 8 2 11 9 Detach 10 | . 3 . 1 1 . 1 1 . . . 3 Swap 78 | . 2 . 12 2 . 1 5 16 2 29 9 Drop 72 | . 9 1 15 1 1 1 14 10 2 14 4 Fire 275 | . 9 2 42 22 . 21 19 44 1 71 44 Melee 1 | . . . . . . . . . . . 1 Ram 3 | . . . 1 . . . . . . . 2 Kick 2 | . 2 . . . . . . . . . . Crush 2 | . . . 2 . . . . . . . . Escape Stasis 8 | . . . . . . . . . . 8 . Rewire . | . . . . . . . . . . . . Trap . | . . . . . . . . . . . . Miscellaneous . | . . . . . . . . . . . . Route ------- -11/Scrapyard -10/Materials (discovered 2 exits: *Mat / *Min) -10/Mines -9/Materials (discovered 2 exits: Mat / [*Min]) -9/Mines (discovered 3 exits: *Mat x2 / *Exi) -9/Exiles (discovered 2 exits: *Min x2) -8/Mines (discovered 2 exits: *Mat x2) -8/Materials -7/Factory -7/Waste -7/Factory (discovered 5 exits: Fac x4 / *Sto) -7/Storage (discovered 1 exit: Rec) History --------- Turn | Location | Event 17 | -11/Scrapyard | Discovered new exit (range 15) 63 | -11/Scrapyard | Entered Materials 244 | -10/Materials | Identified exit to Mines 279 | -10/Materials | Central database locked down 313 | -10/Materials | Build established: Mutant 314 | -10/Materials | Discovered new exit (range 14) 528 | -10/Materials | Entered Mines 538 | -10/Mines | Learned Materials interactive machine intel 761 | -10/Mines | Discovered new exit (range 10) 935 | -10/Mines | Entered Materials 935 | -9/Materials | Evolved 2 slots: Propulsion x1, Utility x1 936 | -9/Materials | Loaded intel: 18 interactive machine locations 1650 | -9/Materials | Discovered new exit (range 16) 1759 | -9/Materials | Discovered new exit (range 16) 1904 | -9/Materials | Entered Mines 2040 | -9/Mines | Learned Materials security intel 2144 | -9/Mines | Discovered new exit (range 8) 2179 | -9/Mines | A weapon hastily lodged in a ceiling crevice suddenly fell to the ground 2259 | -9/Mines | Discovered new exit (range 15) 2323 | -9/Mines | Assisted by bots powering up and referring to "LRC-V3" 2343 | -9/Mines | Assembled infested the area 2404 | -9/Mines | Destroyed 17 combat bots 2490 | -9/Mines | Deemed a non-threat by the Exiles lab entrance 2490 | -9/Mines | Discovered new exit (range 5) 2495 | -9/Mines | Entered Exiles 2512 | -9/Exiles | Discovered new exit (range 15) 2529 | -9/Exiles | Met 8R-AWN 2547 | -9/Exiles | Met EX-HEX 2603 | -9/Exiles | Met EX-DEC 2665 | -9/Exiles | Learned location of Zion (-7) 2726 | -9/Exiles | Discovered new exit (range 10) 2737 | -9/Exiles | Entered Mines 2745 | -8/Mines | Discovered new exit (range 7) 2873 | -8/Mines | Core integrity fell below 50% 3045 | -8/Mines | Lost 3 parts (2n1w) 3676 | -8/Mines | Discovered new exit (range 9) 3688 | -8/Mines | Entered Materials 3688 | -8/Materials | Evolved 2 slots: Utility x1, Weapon x1 3994 | -8/Materials | Build established: Gunner 4066 | -8/Materials | Discovered new exit (range 15) 4164 | -8/Materials | Repaired Hvy. Ion Engine? 4477 | -8/Materials | Entered Factory 4477 | -7/Factory | Evolved 2 slots: Propulsion x1, Utility x1 5184 | -7/Factory | Lost 4 parts (1u3w) 5314 | -7/Factory | Lost 3 parts (1n2w) 5368 | -7/Factory | Discovered new exit (range 16) 5521 | -7/Factory | Sucked down chute 5521 | -7/Factory | Entered Waste 5536 | -7/Waste | EMP discharged 5536 | -7/Waste | System corruption reached 10% 5547 | -7/Waste | Spotted C-40 Crusher 5549 | -7/Waste | Spotted C-40 Crusher 5597 | -7/Waste | Spotted C-40 Crusher 5600 | -7/Waste | Spotted C-40 Crusher 5613 | -7/Waste | Spotted C-40 Crusher 5620 | -7/Waste | Spotted C-40 Crusher 5628 | -7/Waste | Crushed by Compactor (1 part destroyed) 5635 | -7/Waste | Discovered new exit (range 16) 5636 | -7/Waste | EMP discharged 5653 | -7/Waste | Entered Factory 6438 | -7/Factory | Identified exit to Factory 6660 | -7/Factory | Found Prototype Launcher 6746 | -7/Factory | Lost 3 parts (1n1u1w) 6881 | -7/Factory | Discovered new exit (range 6) 6978 | -7/Factory | Entered Storage 6979 | -7/Storage | Identified exit to Recycling 7070 | -7/Storage | Core integrity fell below 50% 7282 | -7/Storage | Build established: Tank 7365 | -7/Storage | Destroyed 7 combat bots 7515 | -7/Storage | Lost 7 parts (1p3n3u) 7535 | -7/Storage | Core integrity fell below 20% 7574 | -7/Storage | Lost 3 parts (1n1u1w) 7580 | -7/Storage | Destroyed by Y-54 Guardian with Gatling Laser Last Messages --------------- 07513_ U-05 Engineer lays Concrete. 07519_ U-05 Engineer builds a Wall. 07519_ Slug penetrates Earth. 07523_ U-05 Engineer builds a Wall. 07525_ DBY4SBWV,:6/U2%RIR6O3P#GEFSY9R|TK O0 07532_ Penetrated by Slug. 07532_ Critical hit (Destroy). 07534_ R-06 Scavenger collects ECM Suite. 07536_ Arm. Huge Wheel destroyed. 07537_ R-06 Scavenger collects Med. Storage Unit. 07539_ Imp. Cooling System destroyed. 07540_ System corrupted: Matter fused (-5). 07543_ Plasma Cannon destroyed. 07556_ System corrupted: Substantial component data lost. 07573_ 4J8EWPBB#:57Z91RQINPK&JERW29G5,VCX 07574_ Slug penetrates Wall. 07576_ Slammed into Y-54 Guardian. 07577_ Penetrated by Slug. 07578_ Slammed into H-55 Commando. 07578_ Destabilizing: System corrupted (+2). Map ----- +----------------------------------------------------+ | | | | | | | | | | | | | | | ???????????????????????????????????????? | | ???????????????????????????????????????? | | ???????????????????????????????????????? | | ???????????????????????????????????????? | | ???????????????????????????????????????? | | ???????????????????????????????????????? | | ???????????????????????????????????????? | | ??????????????########?????????????????? | | ??????????????# #?????????????????? | | ??????????????# #?????????????????? | | ?????????###### #?????????????????? | | ?????????# / #?????????????????? | | ??#??????# #### #?????????????????? | | ### ###??# #??# #?????????????????? | | # ?# #??##/#####?????????????????? | | ?? ?# #???# #?????????????????????? | | ? """ # ###?# #?????????????????????? | | # """ # ### #?????????????????????? | | # """ + @Y#?????????????????????? | | # """ # h#?????????????????????? | | ? """ # #?????????????????????? | | ?? ?# #?????????????????????? | | # ?# #?????????????????????? | | #######??# #???????????????????### | | ?????????# #???????????????????# | | ?????????# #???????????????????# " | | ?????????# #???????????????????# " | | ?????????# ########????????????# " | | ?????????# ???????????# " | | ?????????# ???????????# | | ?????????# ???????????# | | ?????????# ???????????# | | ?????????# """[ """ ??????????### | | ######???# """[ !""" #???????????? | | # ???# """"%[* ???????????? | | # ??# """"[!= T??????????? | | # ?## """"! ##??????????? | | # # "" #??????????? | | # # #??????????? | | # + #??????????? | | # # #??????????? | | # # % ##??????? ""? | | # !]?########=% #?????????""" | +----------------------------------------------------+ Best States ------------- Heat Dissipation 61 Coolant Potential 65 Energy Generation 18 Energy Capacity 800 Matter Stores 300 Matter Capacity 300 Sight Range 16 Terrain Scan Density 10 Armor Coverage 450 Evasion (%) 55 Targeting Accuracy 6 Recoil Reduction 1 Offensive Hacking 10 Item Schematics ----------------- Hcp. Storage Unit | -10/Materials | Hacked Robot Schematics ------------------ None Fabricated ------------ Nothing Alien Tech Used ----------------- None Achievements -------------- None Challenges ------------ None Game ------ Seed TerrabombDeuteriumCycler Manual? 0 Play Time 01:18:21 Cumulative 237.6 hours Start 2022.05.07 @ 18:44:35 End 2022.05.07 @ 20:01:59 Sessions 1 Manual Loads 0 Difficulty Rogue Special Mode None Game No. 68 Rogue 68 Adventurer 0 Explorer 0 Win Type - Total 13 Types 11/0/2/0/0/0/0/0/0 Lore% 80 Gallery% 84 Achievement% 70 Wizard Run 0 Options --------- ASCII 0 Keyboard 0 Movement Numpad Keybinds 0 Fullscreen 1 Font 14/SmallcapsGlow Map View 84x54 Tactical HUD 1 Map Filters NONE Filters NONE Steam 1 RUN: b74db29c-fd95-4e1f-8a63-a6e05750a2d1